Workbook

Sheet BUDGET SUMMARY
A1: PROPOSED FISCAL YEAR 2026 CITY OF MILLEN BUDGET
A3: REVENUES:
D4: FY 2026 BUDGET | E4: FY 2025 BUDGET | F4: FY 2024 BUDGET | G4: DIFFERENCE
B6: GENERAL FUND | D6: =SUM(REVENUE!B5:B49)+SUM(REVENUE!B55:B79) -> 2776686 | E6: =SUM(REVENUE!C5:C49)+SUM(REVENUE!C55:C79) -> 2719109 | F6: =SUM(REVENUE!D5:D49)+SUM(REVENUE!D55:D79) -> 2391477 | G6: =D6-E6 -> 57577
B7: GAS FUND | D7: =SUM(REVENUE!B95:B101) -> 3922100 | E7: =SUM(REVENUE!C95:C101) -> 3972100 | F7: =SUM(REVENUE!D95:D101) -> 3972100 | G7: =D7-E7 -> -50000
B8: W/S FUND | D8: =SUM(REVENUE!B80:B94) -> 1269690 | E8: =SUM(REVENUE!C80:C94) -> 1262690 | F8: =SUM(REVENUE!D80:D94) -> 1251890 | G8: 7000
B9: SANITATION FUND | D9: =SUM(REVENUE!B102:B103) -> 640100 | E9: =SUM(REVENUE!C102:C103) -> 640100 | F9: =SUM(REVENUE!D102:D103) -> 640100 | G9: 0
B11: TOTAL REVENUE: | D11: =SUM(D6:D9) -> 8608576 | E11: =SUM(E6:E9) -> 8593999 | F11: =SUM(F6:F9) -> 8255567 | G11: =SUM(G6:G9) -> 14577
A14: EXPENDITURES:
B16: GENERAL FUND
C18: LEGISLATIVE | D18: =SUM(LEGISLATION!B6:B15) -> 123400 | E18: =SUM(LEGISLATION!C6:C15) -> 105900 | F18: =SUM(LEGISLATION!D6:D15) -> 107700 | G18: =D18-E18 -> 17500
C19: ADMINISTRATIVE | D19: =SUM(ADMINISTRATION!B6:B47) -> 956950 | E19: =SUM(ADMINISTRATION!C6:C47) -> 937535 | F19: =SUM(ADMINISTRATION!D6:D47) -> 859806 | G19: =D19-E19 -> 19415
C20: MUNICIPAL COURT | D20: =SUM('MUNICIPAL COURT'!B6:B16) -> 179725 | E20: =SUM('MUNICIPAL COURT'!C6:C16) -> 179725 | F20: =SUM('MUNICIPAL COURT'!D6:D16) -> 174200 | G20: 0
C21: POLICE DEPARTMENT | D21: =SUM(POLICE!B6:B35) -> 1131915 | E21: =SUM(POLICE!C6:C35) -> 1120850 | F21: =SUM(POLICE!D6:D35) -> 1018883 | G21: 11065
C22: FIRE DEPARTMENT | D22: =SUM(FIRE!B6:B35) -> 543645 | E22: =SUM(FIRE!C6:C35) -> 539119 | F22: =SUM(FIRE!D6:D35) -> 509295 | G22: 4526
C23: ANIMAL CONTROL | D23: =SUM('ANIMAL CONTROL'!B6:B16) -> 35930 | E23: =SUM('ANIMAL CONTROL'!C6:C16) -> 39320 | F23: =SUM('ANIMAL CONTROL'!D6:D16) -> 35685 | G23: -3390
C24: STREET DEPARTMENT | D24: =SUM('STREET AND LANES'!B6:B38) -> 897895 | E24: =SUM('STREET AND LANES'!C6:C38) -> 889000 | F24: =SUM('STREET AND LANES'!D6:D38) -> 686400 | G24: 8895
C25: SHOP | D25: =SUM(SHOP!B6:B26) -> 92845 | E25: =SUM(SHOP!C6:C26) -> 97335 | F25: =SUM(SHOP!D6:D26) -> 94114 | G25: -4490
G26: 0
C27: TOTAL G/F EXPENDITURES: | D27: =SUM(D18:D25) -> 3962305 | E27: =SUM(E18:E25) -> 3908784 | F27: =SUM(F18:F25) -> 3486083 | G27: 53521
G28: 0
B29: GAS FUND EXPENDITURES | D29: =SUM(GAS!B6:B39) -> 3009570 | E29: =SUM(GAS!C6:C39) -> 3101845 | F29: =SUM(GAS!D6:D39) -> 3224645 | G29: -92275
B30: WATER EXPENDITURES | D30: =SUM(WATER!B6:B45) -> 500880 | E30: =SUM(WATER!C6:C45) -> 477665 | F30: =SUM(WATER!D6:D45) -> 445714 | G30: 23215
B31: SEWER EXPENDITURES | D31: =SUM(SEWER!B6:B44) -> 557110 | E31: =SUM(SEWER!C6:C44) -> 553610 | F31: =SUM(SEWER!D6:D44) -> 540815 | G31: 3500
B32: SANITATION EXPENDITURES | D32: =SUM(SANITATION!B6:B31) -> 578711 | E32: =SUM(SANITATION!C6:C31) -> 552095 | F32: =SUM(SANITATION!D6:D31) -> 558310 | G32: 26616
B35: TOTAL EXPENDITURES: | D35: =SUM(D27:D34) -> 8608576 | E35: =SUM(E27:E34) -> 8593999 | F35: =SUM(F27:F34) -> 8255567 | G35: =SUM(G27:G34) -> 14577

Sheet REVENUE
A1: REVENUE
B2: 2026 | C2: 2025 | D2: 2024
B3: BUDGETED | C3: BUDGETED | D3: BUDGETED
B4: REVENUE | C4: REVENUE | D4: REVENUE
A5: 100-004-00004-00031-311235 2015 PROPERTY TAXES
A6: 100-004-00004-00031-311236 2016 PROPERTY TAXES
A7: 100-004-00004-00031-311237 2017 PROPERTY TAXES
A8: 100-004-00004-00031-311238 2018 PROPERTY TAXES
A9: 100-004-00004-00031-311239 2019 PROPERTY TAXES
A10: 100-004-00004-00031-311240 2020 PROPERTY TAXES
A11: 100-004-00004-00031-311241 2021 PROPERTY TAXES
A12: 100-004-00004-00031-311242 2022 PROPERTY TAXES | B12: 1000 | C12: 2000 | D12: 25000
A13: 100-004-00004-00031-311243 2023 PROPERTY TAXES | B13: 5000 | C13: 25000 | D13: 300000
A14: 100-004-00004-00031-311244 2024 PROPERTY TAXES | B14: 35000 | C14: 350000
A15: 100-004-00004-00031-311245 2025 PROPERTY TAXES | B15: 485000
A16: 100-004-00004-00031-311310 MOTOR VEHICLE TAXES | D16: 10000
A17: 100-004-00004-00031-311311 TAVT TAXES | B17: 85000 | C17: 80000 | D17: 60000
A18: 100-004-00004-00031-311312 AAVT TAXES | B18: 5000 | C18: 5000
A19: 100-004-00004-00031-311320 MOBILE HOME TAXES | B19: 3000 | C19: 3000 | D19: 3000
A20: 100-004-00004-00031-311340 INTANGIBLE RECORDING TAX | B20: 3000 | C20: 3000 | D20: 3000
A21: 100-004-00004-00031-311350 RAILROAD EQUIPMENT TAX | B21: 4000 | C21: 3500 | D21: 3500
A22: 100-004-00004-00031-311600 REAL ESTATE TRANSFER TAX | B22: 1600 | C22: 1500 | D22: 1500
A23: 100-004-00004-00031-311700 FRANCHISE TAX | B23: 50000 | C23: 50000 | D23: 50000
A24: 100-004-00004-00031-311710 FRANCHISE TAX-GA POWER | B24: 195000 | C24: 165000 | D24: 155000
A25: 100-004-00004-00031-311760 FRANCHIS TAX-BELLSOUTH
A26: 100-004-00004-00031-311765 TOWER RENTAL FEE | B26: 34500 | C26: 34500 | D26: 32700
A27: 100-004-00004-00031-313100 LOCAL OPTION SALES TAX | B27: 410000 | C27: 390000 | D27: 375000
A28: 100-004-00004-00031-314100 HOTEL/MOTEL OCCUPANCY | B28: 7500 | C28: 6500 | D28: 6500
A29: 100-004-00004-00031-314200 ALCOHOLIC BEV EXCISE | B29: 100000 | C29: 100000 | D29: 100000
A30: 100-004-00004-00031-316100 BUSINESS LICENSES | B30: 30000 | C30: 30000 | D30: 28000
A31: 100-004-00004-00031-316200 INSURANCE PREMIUM TAX | B31: 285000 | C31: 265000 | D31: 260000
A32: 100-004-00004-00031-316300 FINANCIAL INSTITUTION TAX | B32: 23000 | C32: 23000 | D32: 18500
A33: 100-004-00004-00031-319110 PENALTIES ON DEL TAXES | B33: 19000 | C33: 18000 | D33: 11000
A34: 100-004-00004-00031-319111 INTEREST ON DEL TAXES | B34: 2500 | C34: 2000 | D34: 1750
A35: 100-004-00004-00031-319120 FI FA ON DEL TAXES | B35: 3500 | C35: 1000 | D35: 1000
A36: 100-004-00004-00031-319500 FI FA
A37: 100-004-00004-00032-321100 BEER & WINE LICENSES | B37: 12000 | C37: 10000 | D37: 9000
A38: 100-004-00004-00032-323100 BUILDING INSPECTION FEES | B38: 1500 | C38: 1500 | D38: 750
A39: 100-004-00004-00032-324100 PENALTIES ON BUS LICENSES | B39: 100 | C39: 100 | D39: 100
A40: 100-004-00004-00033-331310 DOT-TIA PROJECT
A41: 100-004-00004-00033-331312 COUNTY FIREFIGHTING SERVICES | B41: 40000 | C41: 40000 | D41: 40000
A42: 100-004-00004-00032-331315 DOT LMIG | B42: 55000 | C42: 121000 | D42: 49000
A43: 100-004-00004-00033-331316 SAFETY GRANT | B43: 1000 | D43: 6500
A44: 100-004-00004-00033-331317 FIREWORKS TAX GRANT
A45: 100-004-00004-00033-331319 ARPA ACT FUNDING
A46: 100-004-00004-00033-331321 FIRST RESPONDERS GRANT
A47: 100-004-00004-00033-334111 STATE OF GA - GEMA REIMB | B47: 2500
A48: 100-004-00004-00033-336100 LOCAL GRANTS-JENKINS COUNTY | B48: 5000 | C48: 5000 | D48: 5000
A49: 100-004-00004-00033-338010 PAYMENTS IN LIEU-HSG | B49: 8000 | C49: 8000 | D49: 8000
A50: REVENUE
B51: 2026 | C51: 2025 | D51: 2024
B52: BUDGETED | C52: BUDGETED | D52: BUDGETED
B53: REVENUE | C53: REVENUE | D53: REVENUE
A55: 100-004-00004-00034-341910 QUALIFYING FEES | B55: 300 | C55: 300 | D55: 300
A56: 100-004-00004-00034-342200 SPECIAL FIRE PROTECTION | B56: 10000 | C56: 10000 | D56: 10000
A57: 100-004-00004-00034-346900 ANSWERING SERVICE FEES
A58: 100-004-00004-00034-349100 CEMETERY FEES | B58: 12500 | C58: 12500 | D58: 12500
A59: 100-004-00004-00034-349300 RETURN CHECK SVC CHARGE | B59: 500 | C59: 500 | D59: 500
A60: 100-004-00004-00035-351170 FEES, FINES & FORFEITURES | B60: 500000 | C60: 500000 | D60: 500000
A61: 100-004-00004-00035-351171 PROBATION FEES | B61: 50000 | C61: 50000 | D61: 50000
A62: 100-004-00004-00035-351175 TECHNOLOGY FEES | B62: 30000 | C62: 30000 | D62: 30000
A63: 100-004-00004-00036-361000 INTEREST INC-INVESTMENTS | B63: 10000 | C63: 10000 | D63: 3000
A64: 100-004-00004-00037-370000 NS SAFETY FIRST GRANT POL/FIRE | B64: 1000 | D64: 0
A65: 100-004-00004-00037-370001 NS COMMUNITY IMPACT GRANT | B65: 1000 | D65: 0
A66: 100-004-00004-00038-380000 COKE FUND | B66: 500 | C66: 500 | D66: 1000
A67: 100-004-00004-00038-380001 SNACK FUND | B67: 500 | C67: 500 | D67: 500
A68: 100-004-00004-00038-381000 COMMUNITY HOUSE RENT | B68: 20000 | C68: 16000 | D68: 13000
A69: 100-004-00004-00038-381001 LOT RENT INCOME | B69: 1000 | C69: 3000 | D69: 3000
A70: 100-004-00004-00038-389010 RECOVERY OF BAD DEBT | B70: 100 | C70: 100 | D70: 100
A71: 100-004-00004-00038-389020 MISCELLANEOUS RECEIPTS | B71: 65000 | C71: 65000 | D71: 60000
A72: 100-004-00004-00038-389025 DISCOUNTS TAKEN | B72: 2500 | C72: 2500 | D72: 2000
A73: 100-004-00004-00038-389030 OVER AND SHORT | B73: 50 | C73: 50 | D73: 50
A74: 100-004-00004-00038-389040 EMPLOYEE INSURANCE | B74: 67000 | C74: 67000 | D74: 67000
A75: 100-004-00004-00038-389050 CRIMINAL HISTORIES | B75: 1500 | C75: 1500 | D75: 1500
A76: 100-004-00004-00039-390002 FEMA REIMBURSEMENTS | B76: 50000 | C76: 0
A77: 100-004-00004-00039-392100 CITY PROPERTY SOLD | B77: 40000 | C77: 10000 | D77: 40000
A78: 100-004-00004-00039-393600 CONTINGENCY FUND | B78: 36 | C78: 195559 | D78: 32727
A79: 100-004-00004-00040-400000 PROPERTY TAX & ERRORS | B79: 500 | C79: 500 | D79: 500
A80: 505-004-00004-00033-330000 JCDA LOAN REIMBURSEMENT | B80: 12000 | C80: 6000 | D80: 6000
A81: 505-004-00004-00034-344210 WATER REVENUE | B81: 550000 | C81: 550000 | D81: 550000
A82: 505-004-00004-00034-344211 WATER PENALTIES | B82: 60000 | C82: 60000 | D82: 50000
A83: 505-004-00004-00034-344212 WATER CONNECTION FEES | B83: 10000 | C83: 10000 | D83: 10000
A84: 505-004-00004-00034-344213 WATER BAD DEBT | B84: 1500 | C84: 1500 | D84: 1500
A85: 505-004-00004-00034-344215 WATER ON/OFF | B85: 500 | C85: 500 | D85: 500
A86: 505-004-00004-00034-344217 MISC-WATER SALES | B86: 2000 | C86: 2000 | D86: 2000
A87: 505-004-00004-00034-344255 SEWER REVENUE | B87: 600000 | C87: 600000 | D87: 600000
A88: 505-004-00004-00034-344257 SEWER CONNECTION FEES | B88: 2000 | C88: 2000 | D88: 2000
A89: 505-004-00004-00034-344258 SEWER BAD DEBT | B89: 100 | C89: 100 | D89: 100
A90: 505-004-00004-00034-344422 CCA REIMBURSEMENTS | B90: 29340 | C90: 29340 | D90: 29340
A91: 505-004-00004-00034-349300 RETURN CHECK SERVICE | B91: 250 | C91: 250 | D91: 200
A92: 505-004-00004-00036-361000 INTEREST INCOME-INVESTMENTS | B92: 1000 | C92: 1000 | D92: 250
A93: 505-004-00004-00039-390000 GEFA REIMBURSEMENT | D93: 0
A94: 505-004-00004-00039-390001 GEFA LSL GRANT | B94: 1000 | C94: 0 | D94: 0
A95: 515-004-00004-00034-344410 GAS REVENUES | B95: 3700000 | C95: 3750000 | D95: 3750000
A96: 515-004-00004-00034-344411 GAS PENALTIES | B96: 1000 | C96: 1000 | D96: 1000
A97: 515-004-00004-00034-344412 GAS CONNECTION FEES | B97: 1000 | C97: 1000 | D97: 1000
A98: 515-004-00004-00034-344418 MISC-GAS-SALES | B98: 190000 | C98: 190000 | D98: 190000
A99: 515-004-00004-00034-344420 SALES TAX
A100: 515-004-00004-00034-344421 ENERGY EXCISE TAX | B100: 30000 | C100: 30000 | D100: 30000
A101: 515-004-00004-00036-361000 INTEREST INC - INVESTMENTS | B101: 100 | C101: 100 | D101: 100
A102: 540-004-00004-00034-344110 SANITATION CHARGES | B102: 640000 | C102: 640000 | D102: 640000
A103: 540-004-00004-00034-344111 SANITATION PENALTIES | B103: 100 | C103: 100 | D103: 100
A105: TOTAL REVENUES | B105: =SUM(B5:B49)+SUM(B54:B103) -> 8608576 | C105: =SUM(C5:C49)+SUM(C55:C104) -> 8593999 | D105: =SUM(D5:D49)+SUM(D55:D104) -> 8255567

Sheet LEGISLATION
A1: LEGISLATION
B2: 2026 | C2: 2025 | D2: 2024
B4: BUDGET | C4: BUDGET | D4: BUDGET
A6: 100-101-01110-00051-511100 SALARIES | B6: 25000 | C6: 25000 | D6: 19000
A7: 100-101-01110-00051-512100 EMPLOYEE INSURANCE | B7: 52500 | C7: 50000 | D7: 50000
A8: 100-101-01110-00051-512200 PAYROLL TAXES | B8: 300 | C8: 300 | D8: 300
A9: 100-101-01110-00051-512400 EMPLOYEE RETIREMENT | B9: 1800 | C9: 1800 | D9: 1800
A10: 100-101-01110-00052-521200 PROFESSIONAL SERVICES | B10: 800 | C10: 800 | D10: 800
A11: 100-101-01110-00052-523301 ADVERTISING | B11: 1000 | C11: 1000 | D11: 300
A12: 100-101-01110-00052-523500 TRAVEL | B12: 9000 | C12: 8000 | D12: 4500
A13: 100-101-01110-00052-523700 TRAINING AND EDUCATION | B13: 12000 | C13: 8000 | D13: 5000
A14: 100-101-01110-00057-573401 MISCELLANEOUS | B14: 1000 | C14: 1000 | D14: 1000
A15: 100-101-01400-00053-531111 ELECTIONS EXPENSE | B15: 20000 | C15: 10000 | D15: 25000
A17: TOTAL EXPENDITURE | B17: =SUM(B6:B15) -> 123400 | C17: =SUM(C6:C15) -> 105900 | D17: =SUM(D6:D15) -> 107700

Sheet ADMINISTRATION
A1: ADMINISTRATION
B2: 2026 | C2: 2025 | D2: 2024
B4: BUDGET | C4: BUDGET | D4: BUDGET
A6: 100-102-01510-00051-511100 SALARIES | B6: 370000 | C6: 392430 | D6: 381000
A7: 100-102-01510-00051-511301 OVERTIME | B7: 1000 | C7: 1000 | D7: 1000
A8: 100-102-01510-00051-512100 EMPLOYEE INSURANCE | B8: 68000 | C8: 65000 | D8: 63000
A9: 100-102-01510-00051-512200 PAYROLL TAXES | B9: 28500 | C9: 30250 | D9: 29200
A10: 100-102-01510-00051-512400 EMPLOYEE RETIREMENT | B10: 18000 | C10: 21580 | D10: 21000
A11: 100-102-01510-00051-512402 EMPLOYER 457 MATCH | B11: 11150 | C11: 11775 | D11: 11450
A12: 100-102-01510-00051-512700 WORKERS COMP. INSURANCE | B12: 3000 | C12: 3000 | D12: 2106
A13: 100-102-01510-00051-512710 EMPLOYEE MINOR INJURIES | B13: 2500 | C13: 3500 | D13: 3500
A14: 100-102-01510-00052-521200 PROFESSIONAL SERVICES | B14: 90000 | C14: 50000 | D14: 37500
A15: 100-102-01510-00052-521230 PROF SVCS-ACCT/AUDIT | B15: 40000 | C15: 40000 | D15: 40000
A16: 100-102-01510-00052-521240 S.A.V.E. COMPLIANCE | B16: 300 | C16: 300 | D16: 300
A17: 100-102-01510-00052-521320 DRUG & ALCOHOL TESTING | B17: 500 | C17: 500 | D17: 500
A18: 100-102-01510-00052-522220 REPAIRS & MAINT-VEHICLES | B18: 1250 | C18: 2500 | D18: 2500
A19: 100-102-01510-00052-522230 REPAIRS & MAINT-EQUIPMENT | B19: 4000 | C19: 4000 | D19: 4000
A20: 100-102-01510-00052-522240 SOFTWARE MAINTENANCE | B20: 20000 | C20: 18000 | D20: 18000
A21: 100-102-01510-00052-522241 COMPUTER MAINTENANCE | B21: 15000 | C21: 12000 | D21: 12000
A22: 100-102-01510-00052-522260 LANDSCAPING & GROUNDS | B22: 4000 | C22: 4000 | D22: 4000
A23: 100-102-01510-00052-522310 RENTAL/LEASES | B23: 3750 | C23: 3750 | D23: 2500
A24: 100-102-01510-00052-522320 RENTALS-EQUIPMENT | B24: 500 | C24: 500 | D24: 500
A25: 100-102-01510-00052-523200 COMMUNICATIONS | B25: 23000 | C25: 22000 | D25: 18500
A26: 100-102-01510-00052-523301 ADVERTISING | B26: 3000 | C26: 3000 | D26: 3000
A27: 100-102-01510-00052-523500 TRAVEL | B27: 5000 | C27: 5000 | D27: 5000
A28: 100-102-01510-00052-523610 DUES & SUBSCRIPTIONS | B28: 2500 | C28: 2500 | D28: 2500
A29: 100-102-01510-00052-523700 TRAINING & EDUCATION | B29: 5000 | C29: 5000 | D29: 5000
A30: 100-102-01510-00052-523920 BANK SERVICE CHARGES | B30: 650 | C30: 600 | D30: 600
A31: 100-102-01510-00053-530000 COKE FUND | B31: 100 | C31: 100 | D31: 600
A32: 100-102-01510-00053-530001 SNACK FUND | B32: 100 | C32: 100 | D32: 400
A33: 100-102-01510-00053-531110 OFFICE SUPPLIES | B33: 6250 | C33: 6250 | D33: 6250
A34: 100-102-01510-00053-531120 MAINT & OP SUPPLIES | B34: 5000 | C34: 5000 | D34: 5000
A35: 100-102-01510-00053-531230 UTILITIES | B35: 28000 | C35: 28000 | D35: 28000
A36: 100-102-01510-00053-531270 VEHICLE GASOLINE | B36: 1500 | C36: 2000 | D36: 2000
A37: 100-102-01510-00053-531401 BOOKS AND PERIODICALS | B37: 500 | C37: 500 | D37: 500
A38: 100-102-01510-00053-531720 UNIFORMS | B38: 500 | C38: 500 | D38: 500
A39: 100-102-01510-00053-531730 MISCELLANEOUS | B39: 10000 | C39: 10000 | D39: 10000
A40: 100-102-01510-00053-531732 REIMBURSEMENT/JC/AUTHORITY | B40: 1000 | C40: 1000 | D40: 1000
A41: 100-102-01510-00054-542000 CAP OUTLAY-MACH/EQUIP | B41: 5000 | C41: 5000 | D41: 5000
A42: 100-102-01510-00057-579000 CONTINGENCY | B42: 18500 | C42: 18500 | D42: 18500
A43: 100-102-01510-00057-579100 ADMIN/GRANT/BETTER HT | B43: 18000 | C43: 18000 | D43: 18000
A44: 100-102-01510-00057-579105 DOWNTOWN DEV AUTH FUNDING | B44: 9400 | C44: 9400 | D44: 9400
A45: 100-102-01545-00031-319500 FI FA | B45: 2500 | C45: 1000 | D45: 1000
A46: 100-102-01555-00052-523100 LIABILITY & PROP INSURANCE | B46: 105000 | C46: 105000 | D46: 60000
A47: 100-102-01565-00052-522210 REPAIRS & MAINT-BUILDING | B47: 25000 | C47: 25000 | D47: 25000
A49: TOTAL EXPENDITURE | B49: =SUM(B6:B47) -> 956950 | C49: =SUM(C6:C47) -> 937535 | D49: =SUM(D6:D47) -> 859806

Sheet MUNICIPAL COURT
A1: MUNICIPAL COURT
B2: 2026 | C2: 2025 | D2: 2024
B4: BUDGET | C4: BUDGET | D4: BUDGET
A6: 100-104-02650-00052-521200 PROFESSIONAL SERVICES | B6: 38500 | C6: 38500 | D6: 33000
A7: 100-104-02650-00052-522240 SOFTWARE MAINTENANCE | B7: 13000 | C7: 13000 | D7: 13000
A8: 100-104-02650-00052-523200 COMMUNICATIONS | B8: 175 | C8: 175 | D8: 150
A9: 100-104-02650-00052-523500 TRAVEL | B9: 500 | C9: 500 | D9: 500
A10: 100-104-02650-00052-523610 DUES AND SUBSCRIPTIONS | B10: 100 | C10: 100 | D10: 100
A11: 100-104-02650-00052-523700 TRAINING AND EDUCATION | B11: 750 | C11: 750 | D11: 750
A12: 100-104-02650-00053-531110 OFFICE SUPPLIES | B12: 200 | C12: 200 | D12: 200
A13: 100-104-02650-00057-572035 GSCCCA | B13: 80000 | C13: 80000 | D13: 80000
A14: 100-104-02650-00057-572110 STATE MANDATED FEES | B14: 45000 | C14: 45000 | D14: 45000
A15: 100-104-02650-00057-572120 COURT COSTS | B15: 500 | C15: 500 | D15: 500
A16: 100-104-02650-00057-579000 CONTINGENCY | B16: 1000 | C16: 1000 | D16: 1000
A18: TOTAL EXPENDITURE | B18: =SUM(B5:B16) -> 179725 | C18: =SUM(C5:C16) -> 179725 | D18: =SUM(D5:D16) -> 174200

Sheet POLICE
A1: POLICE
B2: 2026 | C2: 2025 | D2: 2024
B4: BUDGET | C4: BUDGET | D4: BUDGET
A6: 100-105-03200-00051-511100 SALARIES | B6: 662000 | C6: 625000 | D6: 565250
A7: 100-105-03200-00051-511301 OVERTIME | B7: 25000 | C7: 25000 | D7: 20000
A8: 100-105-03200-00051-512100 EMPLOYEE INSURANCE | B8: 144000 | C8: 144000 | D8: 140400
A9: 100-105-03200-00051-512102 POLICE PTSD INSURANCE | B9: 5000 | C9: 0 | D9: 0
A10: 100-105-03200-00051-512200 PAYROLL TAXES | B10: 9930 | C10: 9375 | D10: 8500
A11: 100-105-03200-00051-512400 EMPLOYEE RETIREMENT | B11: 34375 | C11: 34375 | D11: 33200
A12: 100-105-03200-00051-512402 EMPLOYER 457 MATCH | B12: 19860 | C12: 18750 | D12: 16958
A13: 100-105-03200-00051-512700 WORKERS COMP INSURANCE | B13: 21000 | C13: 21000 | D13: 21875
A14: 100-105-03200-00052-521320 DRUG & ALCOHOL TESTING | B14: 400 | C14: 400 | D14: 400
A15: 100-105-03200-00052-522210 REPAIRS & MAINT-BLDG | B15: 1500 | C15: 1500 | D15: 1500
A16: 100-105-03200-00052-522220 REPAIRS & MAINT-VEHICLES | B16: 12000 | C16: 25000 | D16: 20000
A17: 100-105-03200-00052-522230 REPAIRS & MAINT-EQUIPMENT | B17: 4000 | C17: 4000 | D17: 4000
A18: 100-105-03200-00052-522240 SOFTWARE MAINTENANCE | B18: 450 | C18: 450 | D18: 400
A19: 100-105-03200-00052-523200 COMMUNICATIONS | B19: 7000 | C19: 6600 | D19: 5000
A20: 100-105-03200-00052-523301 ADVERTISING | B20: 300 | C20: 300 | D20: 300
A21: 100-105-03200-00052-523500 TRAVEL | B21: 5000 | C21: 5000 | D21: 3500
A22: 100-105-03200-00052-523610 DUES & SUBSCRIPTIONS | B22: 1000 | C22: 1000 | D22: 1000
A23: 100-105-03200-00052-523700 TRAINING & EDUCATION | B23: 2000 | C23: 2000 | D23: 2000
A24: 100-105-03200-00052-523710 TECHNOLOGY FUND | B24: 70000 | C24: 70000 | D24: 70000
A25: 100-105-03200-00053-531110 OFFICE SUPPLIES | B25: 2000 | C25: 2000 | D25: 2000
A26: 100-105-03200-00053-531120 MAINT & OPS SUPPLIES | B26: 1500 | C26: 1500 | D26: 1500
A27: 100-105-03200-00053-531270 VEHICLE GASOLINE | B27: 44000 | C27: 44000 | D27: 44000
A28: 100-105-03200-00053-531720 UNIFORMS | B28: 7500 | C28: 7500 | D28: 7500
A29: 100-105-03200-00053-531730 MISCELLANEOUS | B29: 7000 | C29: 7000 | D29: 7000
A30: 100-105-03200-00054-542000 CAPITAL OUTLAY MACH/EQUIP | B30: 1500 | C30: 1500 | D30: 0
A31: 100-105-03200-00054-541200 CAPITAL OUTLAY IMPROVEMENTS | B31: 20000 | C31: 40000 | D31: 20000
A32: 100-105-03200-00057-572030 PEACE OFFICERS' ANNUITY | B32: 3600 | C32: 3600 | D32: 3600
A33: 100-105-03200-00057-579000 CONTINGENCIES | B33: 15000 | C33: 15000 | D33: 15000
A34: 100-105-03226-00052-523940 PRISONER MEDICAL CARE | B34: 2000 | C34: 2000 | D34: 2000
A35: 100-105-03226-00052-523941 INMATE HOUSING AND FOOD | B35: 3000 | C35: 3000 | D35: 2000
A37: TOTAL EXPENDITURE | B37: =SUM(B6:B35) -> 1131915 | C37: =SUM(C6:C35) -> 1120850 | D37: =SUM(D6:D35) -> 1018883

Sheet FIRE
A1: FIRE
B2: 2026 | C2: 2025 | D2: 2024
B4: BUDGET | C4: BUDGET | D4: BUDGET
A6: 100-106-03500-00051-511100 SALARIES | B6: 284600 | C6: 284074 | D6: 275800
A7: 100-106-03500-00051-511110 SALARIES-VOL FIREMEN | B7: 26000 | C7: 26000 | D7: 26000
A8: 100-106-03500-00051-511301 OVERTIME | B8: 35000 | C8: 30000 | D8: 20000
A9: 100-106-03500-00051-512100 EMPLOYEE INSURANCE | B9: 84000 | C9: 84000 | D9: 75600
A10: 100-106-03500-00051-512101 FIREFIGHTER CANCER INSURANCE | B10: 4750 | C10: 4750 | D10: 4750
A11: 100-106-03500-00051-512200 PAYROLL TAXES | B11: 5400 | C11: 5400 | D11: 5100
A12: 100-106-03500-00051-512400 EMPLOYEE RETIREMENT | B12: 25600 | C12: 25600 | D12: 25500
A13: 100-106-03500-00051-512402 EMPLOYER 457 MATCH | B13: 8525 | C13: 8525 | D13: 8275
A14: 1001-06-03500-00051-512700 WORKERS COMP. INSURANCE | B14: 6720 | C14: 6720 | D14: 6720
A15: 100-106-03500-00052-521320 DRUG & ALCOHOL TESTING | B15: 500 | C15: 500 | D15: 500
A16: 100-106-03500-00052-522210 REPAIRS & MAINT-BLDG | B16: 2500 | C16: 2500 | D16: 2500
A17: 100-106-03500-00052-522220 REPAIRS & MAINT-VEHICLE | B17: 4000 | C17: 4000 | D17: 4000
A18: 100-106-03500-00052-522230 REPAIRS & MAINT-EQUIP | B18: 7000 | C18: 7000 | D18: 6500
A19: 100-106-03500-00052-522240 SOFTWARE MAINTENANCE | B19: 1200 | C19: 1200 | D19: 1200
A20: 100-106-03500-00052-522241 COMPUTER MAINTENANCE | B20: 3800 | C20: 3800 | D20: 3500
A21: 100-106-03500-00052-523200 COMMUNICATIONS | B21: 2500 | C21: 2500 | D21: 1800
A22: 100-106-03500-00052-523301 ADVERTISING | B22: 200 | C22: 200 | D22: 200
A23: 100-106-03500-00052-523500 TRAVEL | B23: 1000 | C23: 1000 | D23: 1000
A24: 100-106-03500-00052-523610 DUES & SUBSCRIPTIONS | B24: 100 | C24: 100 | D24: 100
A25: 100-106-03500-00052-523700 TRAINING & EDUCATION | B25: 1000 | C25: 1000 | D25: 1000
A26: 100-106-03500-00053-531110 OFFICE SUPPLIES | B26: 450 | C26: 450 | D26: 450
A27: 100-106-03500-00053-531120 MAINT & OPERATING | B27: 500 | C27: 500 | D27: 500
A28: 100-106-03500-00053-531130 CHEMICALS | B28: 200 | C28: 200 | D28: 200
A29: 100-106-03500-00053-531270 VEHICLE GASOLINE | B29: 3000 | C29: 3000 | D29: 3000
A30: 100-106-03500-00053-531720 UNIFORMS | B30: 6000 | C30: 6000 | D30: 6000
A31: 100-106-03500-00053-531730 MISCELLANEOUS | B31: 6000 | C31: 7000 | D31: 7000
A32: 100-106-03500-00054-541200 CAPITAL OUTLAY-IMPROVEMENTS | B32: 1000 | C32: 1000 | D32: 0
A33: 100-106-03500-00054-542000 CAPITAL OUTLAY MACH/EQUIP | B33: 15000 | C33: 15000 | D33: 15000
A34: 100-106-03500-00057-572020 PENSION FUND | B34: 2100 | C34: 2100 | D34: 2100
A35: 100-106-03500-00057-579000 CONTINGENCIES | B35: 5000 | C35: 5000 | D35: 5000
A37: TOTAL EXPENDITURE | B37: =SUM(B6:B35) -> 543645 | C37: =SUM(C6:C35) -> 539119 | D37: =SUM(D6:D35) -> 509295

Sheet ANIMAL CONTROL
A1: ANIMAL CONTROL
B2: 2026 | C2: 2025 | D2: 2024
B4: BUDGET | C4: BUDGET | D4: BUDGET
A6: 100-107-03910-00051-511100 SALARIES | B6: 8000 | C6: 8000 | D6: 8000
A7: 100-107-03910-00051-512200 PAYROLL TAXES | B7: 680 | C7: 680 | D7: 680
A8: 100-107-03910-00051-512700 WORKERS COMP INSURANCE | B8: 350 | C8: 240 | D8: 105
A9: 100-017-03910-00052-521200 PROFESSIONAL SERVICES | B9: 18000 | C9: 21500 | D9: 18000
A10: 100-107-03910-00052-522210 REPAIRS & MAINT-BUILDING | B10: 2000 | C10: 2000 | D10: 2000
A11: 100-017-03910-00052-522230 REPAIRS & MAINT-EQUIPMENT | B11: 700 | C11: 700 | D11: 700
A12: 100-107-03910-00053-531110 OFFICE SUPPLIES | B12: 200 | C12: 200 | D12: 200
A13: 100-107-03910-00053-531120 MAINT & OPERATING SUPPLIES | B13: 2500 | C13: 2500 | D13: 2500
A14: 100-107-03910-00053-531230 UTILITIES | B14: 1000 | C14: 1000 | D14: 1000
A15: 100-107-03910-00053-531710 ANIMAL FOOD | B15: 1500 | C15: 1500 | D15: 1500
A16: 100-107-03910-00053-531730 MISCELLANEOUS | B16: 1000 | C16: 1000 | D16: 1000
A18: TOTAL EXPENDITURE | B18: =SUM(B6:B16) -> 35930 | C18: =SUM(C6:C16) -> 39320 | D18: =SUM(D6:D16) -> 35685

Sheet STREET AND LANES
A1: STREET AND LANES
B2: 2026 | C2: 2025 | D2: 2024
B4: BUDGET | C4: BUDGET | D4: BUDGET
A6: 100-108-04200-00051-511100 SALARIES | B6: 251500 | C6: 238300 | D6: 231300
A7: 100-108-04200-00051-511301 OVERTIME/PART-TIME | B7: 6000 | C7: 6000 | D7: 5000
A8: 100-108-04200-00051-512100 EMPLOYEE INSURANCE | B8: 96000 | C8: 96000 | D8: 86400
A9: 100-108-04200-00051-512200 PAYROLL TAXES | B9: 19300 | C9: 18300 | D9: 17700
A10: 100-018-04200-00051-512400 EMPLOYEE RETIREMENT | B10: 21450 | C10: 21450 | D10: 20800
A11: 100-108-04200-00051-512402 EMPLOYER 457 MATCH | B11: 7545 | C11: 7150 | D11: 6940
A12: 100-108-04200-00051-512700 WORKERS COMP INSURANCE | B12: 8000 | C12: 9000 | D12: 7460
A13: 100-108-04200-00052-521200 PROFESSIONAL SERVICES | B13: 12000 | C13: 12000 | D13: 10000
A14: 100-108-04200-00052-521320 DRUG & ALCOHOL TESTING | B14: 500 | C14: 500 | D14: 500
A15: 100-108-04200-00052-522210 REPAIRS & MAINT-BLDG/GRND | B15: 2500 | C15: 2500 | D15: 2500
A16: 100-108-04200-00052-522220 REPAIRS & MAINT-VEHICLES | B16: 7000 | C16: 10000 | D16: 10000
A17: 100-108-04200-00052-522230 REPAIRS & MAINT-EQUIPMENT | B17: 23000 | C17: 20000 | D17: 20000
A18: 100-108-04200-00052-522240 SOFTWARE MAINTENANCE | B18: 1000 | C18: 1000 | D18: 1000
A19: 100-108-04200-00052-522241 COMPUTER MAINTENANCE | B19: 1000 | C19: 700 | D19: 700
A20: 100-108-04200-00052-523200 COMMUNICATIONS | B20: 3500 | C20: 3500 | D20: 3500
A21: 100-108-04200-00052-523301 ADVERTISING | B21: 300 | C21: 300 | D21: 300
A22: 100-108-04200-00052-523500 TRAVEL | B22: 100 | C22: 100 | D22: 100
A23: 100-108-04200-00052-523700 TRAINING & EDUCATION | B23: 400 | C23: 400 | D23: 400
A24: 100-108-04200-00053-531110 OFFICE SUPPLIES | B24: 300 | C24: 300 | D24: 300
A25: 100-108-04200-00053-531120 MAINT & OPERATING SUPPLIES | B25: 14000 | C25: 14000 | D25: 12000
A26: 100-108-04200-00053-531140 SMALL TOOLS /MINOR EQUIP | B26: 1000 | C26: 1000 | D26: 1000
A27: 100-108-04200-00053-531151 SUPPLIES-STREET SIGNS | B27: 5000 | C27: 5000 | D27: 5000
A28: 100-108-04200-00053-531152 UTILITIES-STREET LIGHTS/SIGS | B28: 115000 | C28: 115000 | D28: 109000
A29: 100-108-04200-00053-531230 UTILITIES | B29: 4500 | C29: 4500 | D29: 4500
A30: 100-108-04200-00053-531270 VEHICLE GASOLINE | B30: 25000 | C30: 25000 | D30: 25000
A31: 100-108-04200-00053-531720 UNIFORMS | B31: 5000 | C31: 5000 | D31: 5000
A32: 100-108-04200-00053-531730 MISCELLANEOUS | B32: 6000 | C32: 6000 | D32: 6000
A33: 100-108-04200-00054-540010 DOT LMIG | B33: 120000 | C33: 120000 | D33: 49000
A34: 100-108-04200-00054-541200 CAPITAL OUTLAY IMPROVEMENTS | B34: 1000 | C34: 1000
A35: 100-108-04200-00054-541420 STREET CONSTR/RESURFACE | B35: 10000 | C35: 10000 | D35: 10000
A36: 100-108-04200-00054-541430 SIDEWALKS/CURBS/GUTTERS | B36: 100000 | C36: 105000 | D36: 5000
A37: 100-108-04200-00054-542000 CAPITAL OUTLAY MACH/EQUIP | B37: 15000 | C37: 15000 | D37: 15000
A38: 100-108-04200-00057-579000 CONTINGENCIES | B38: 15000 | C38: 15000 | D38: 15000
A39: 100-108-04200-00058-581300 DEBT SERVICE
A41: TOTAL EXPENDITURE | B41: =SUM(B6:B39) -> 897895 | C41: =SUM(C6:C39) -> 889000 | D41: =SUM(D6:D39) -> 686400

Sheet SHOP
A1: SHOP
B2: 2026 | C2: 2025 | D2: 2024
B4: BUDGET | C4: BUDGET | D4: BUDGET
A6: 100-109-04900-00051-511100 SALARIES | B6: 59040 | C6: 57320 | D6: 55646
A7: 100-109-04900-00051-512100 EMPLOYEE INSURANCE | B7: 7000 | C7: 12000 | D7: 11400
A8: 100-109-04900-00051-512200 PAYROLL TAXES | B8: 4520 | C8: 4385 | D8: 4263
A9: 100-109-04900-00051-512400 EMPLOYEE RETIREMENT | B9: 3500 | C9: 4500 | D9: 5000
A10: 100-109-04900-00051-512402 EMPLOYER 457 MATCH | B10: 1775 | C10: 1720 | D10: 1670
A11: 100-109-04900-00051-512700 WORKERS COMP INSURANCE | B11: 935 | C11: 935 | D11: 935
A12: 100-109-04900-00052-521235 UTILITIES - NATURAL GAS | B12: 250 | C12: 250 | D12: 250
A13: 100-109-04900-00052-521320 DRUG AND ALCOHOL TESTING | B13: 50 | C13: 50 | D13: 50
A14: 100-109-04900-00052-522210 REPAIRS & MAINT-BLDG/GRND | B14: 1000 | C14: 1000 | D14: 1000
A15: 100-109-04900-00052-522220 REPAIRS & MAINT-VEHICLES | B15: 600 | C15: 1500 | D15: 1500
A16: 100-109-04900-00052-522230 REPAIRS & MAINT-EQUIP | B16: 1500 | C16: 1000 | D16: 1000
A17: 100-109-04900-00052-522241 COMPUTER MAINTENANCE | B17: 1200 | C17: 1200 | D17: 1000
A18: 100-109-04900-00052-523200 COMMUNICATIONS | B18: 1325 | C18: 1325 | D18: 1300
A19: 100-109-04900-00052-523700 TRAINING & EDUCATION | B19: 100 | C19: 100 | D19: 100
A20: 100-109-04900-00053-531110 OFFICE SUPPLIES | B20: 250 | C20: 250 | D20: 250
A21: 100-109-04900-00053-531120 MAINT & OPERATING SUPPLY | B21: 2500 | C21: 2500 | D21: 2000
A22: 100-109-04900-00053-531230 UTILITIES - ELECTRIC | B22: 3500 | C22: 3500 | D22: 3000
A23: 100-109-04900-00053-531270 VEHICLE GASOLINE | B23: 1000 | C23: 1000 | D23: 1000
A24: 100-109-04900-00053-531720 UNIFORMS | B24: 800 | C24: 800 | D24: 750
A25: 100-109-04900-00053-531730 MISCELLANEOUS | B25: 1000 | C25: 1000 | D25: 1000
A26: 100-109-04900-00054-542000 CAPITAL OUTLAY | B26: 1000 | C26: 1000 | D26: 1000
A28: TOTAL EXPENDITURE | B28: =SUM(B6:B26) -> 92845 | C28: =SUM(C6:C26) -> 97335 | D28: =SUM(D6:D26) -> 94114

Sheet SEWER
A1: SEWER
B2: 2026 | C2: 2025 | D2: 2024
B4: BUDGET | C4: BUDGET | D4: BUDGET
A6: 505-110-04330-00051-511100 SALARIES | B6: 83700 | C6: 83700 | D6: 83700
A7: 505-110-04330-00051-511300 OVERTIME | B7: 2000 | C7: 1500 | D7: 1500
A8: 505-110-04330-00051-512100 EMPLOYEE INSURANCE | B8: 24000 | C8: 24000 | D8: 21600
A9: 505-110-04330-00051-512200 PAYROLL TAXES | B9: 7100 | C9: 7100 | D9: 7100
A10: 505-110-04330-00051-512400 EMPLOYEE RETIREMENT | B10: 7000 | C10: 7000 | D10: 8350
A11: 505-110-04330-00051-512402 EMPLOYER 457 MATCH | B11: 2510 | C11: 2510 | D11: 2780
A12: 505-110-04330-00051-512700 WORKERS COMP INSURANCE | B12: 1000 | C12: 1000 | D12: 685
A13: 505-110-04330-00052-521200 PROFESSIONAL SERVICES | B13: 10000 | C13: 10000 | D13: 10000
A14: 505-110-04330-00052-521210 ENGINEERING FEES | B14: 5000 | C14: 5000 | D14: 5000
A15: 505-110-04330-00052-521310 TECHNICAL SVCS & TESTING | B15: 65000 | C15: 65000 | D15: 65000
A16: 505-110-04330-00052-521320 DRUG & ALCOHOL TESTING | B16: 250 | C16: 250 | D16: 250
A17: 505-110-04330-00052-522210 REPAIRS & MAINT-BUILDING | B17: 1500 | C17: 1500 | D17: 1500
A18: 505-110-04330-00052-522220 REPAIRS & MAINT-VEHICLES | B18: 2000 | C18: 3000 | D18: 2000
A19: 505-110-04330-00052-522230 REPAIRS & MAINT-EQUIPMENT | B19: 7500 | C19: 7500 | D19: 7500
A20: 505-110-04330-00052-522240 SOFTWARE MAINTENANCE | B20: 1000 | C20: 1000 | D20: 1000
A21: 505-110-04300-00052-522241 COMPUTER MAINTENANCE | B21: 1500 | C21: 1500 | D21: 1300
A22: 505-110-04330-00052-523200 COMMUNICATIONS | B22: 1700 | C22: 1700 | D22: 1500
A23: 505-110-04330-00052-523301 ADVERTISING | B23: 200 | C23: 200 | D23: 200
A24: 505-110-04330-00052-523500 TRAVEL | B24: 1000 | C24: 1000 | D24: 1000
A25: 505-110-04330-00052-523610 DUES & SUBSCRIPTIONS | B25: 300 | C25: 300 | D25: 300
A26: 505-110-04330-00052-523700 TRAINING & EDUCATION | B26: 1000 | C26: 1000 | D26: 700
A27: 505-110-04330-00052-523702 ARP EXPENSE FUND
A28: 505-110-04330-00053-531110 OFFICE SUPPLIES | B28: 500 | C28: 500 | D28: 500
A29: 505-110-04330-00053-531120 MAINT & OPERATING-SUPPLIES | B29: 35000 | C29: 35000 | D29: 35000
A30: 505-110-04330-00053-531140 SMALL TOOLS/MINOR EQUIP | B30: 1000 | C30: 1000 | D30: 1000
A31: 505-110-04330-00053-531230 UTILITIES | B31: 55000 | C31: 50000 | D31: 40000
A32: 505-110-04330-00053-531270 VEHICLE GASOLINE | B32: 7500 | C32: 8500 | D32: 8500
A33: 505-110-04330-00053-531720 UNIFORMS | B33: 1500 | C33: 1500 | D33: 1500
A34: 505-110-04330-00053-531730 MISCELLANEOUS | B34: 8500 | C34: 8500 | D34: 8500
A35: 505-110-04330-00054-541200 CAPITAL IMPROVEMENTS | B35: 15000 | C35: 15000 | D35: 15000
A36: 505-110-04330-00054-542000 CAPITAL OUTLAY-MACH/EQUIP | B36: 15000 | C36: 15000 | D36: 15000
A37: 505-110-04330-00057-574000 BAD DEBT EXPENSE
A38: 505-110-04330-00057-579000 CONTINGENCY | B38: 30000 | C38: 30000 | D38: 30000
A39: 505-110-04330-00058-581310 GEFA PRINCIPAL
A40: 505-110-04330-00058-581311 USDA PRINCIPAL
A41: 505-110-04330-00058-582321 USDA INTEREST | B41: 45000 | C41: 45000 | D41: 45000
A42: 505-110-04330-00058-582322 GEFA INTEREST | B42: 60000 | C42: 60000 | D42: 60000
A43: 505-110-04330-00058-582327 GEFA #3 | B43: 37350 | C43: 37350 | D43: 37350
A44: 505-110-04330-00058-582328 GEFA #4 | B44: 20500 | C44: 20500 | D44: 20500
A46: TOTAL EXPENDITURE | B46: =SUM(B6:B44) -> 557110 | C46: =SUM(C6:C44) -> 553610 | D46: =SUM(D6:D44) -> 540815

Sheet WATER
A1: WATER
B2: 2026 | C2: 2025 | D2: 2024
B4: BUDGET | C4: BUDGET | D4: BUDGET
A6: 505-111-04420-00051-511100 SALARIES | B6: 110800 | C6: 105060 | D6: 96800
A7: 505-111-04420-00051-511300 OVERTIME | B7: 1200 | C7: 1200 | D7: 1200
A8: 505-111-04420-00051-512100 EMPLOYEE INSURANCE | B8: 36000 | C8: 36000 | D8: 32400
A9: 505-111-04420-00051-512200 PAYROLL TAXES | B9: 8500 | C9: 8050 | D9: 7405
A10: 505-111-04420-00051-512400 EMPLOYEE RETIREMENT | B10: 9450 | C10: 9450 | D10: 8750
A11: 505-111-04420-00051-512402 EMPLOYER 457 MATCH | B11: 3325 | C11: 3150 | D11: 2904
A12: 505-111-04420-00051-512700 WORKERS COMP INSURANCE | B12: 4500 | C12: 4500 | D12: 4500
A13: 505-111-04420-00052-521200 PROFESSIONAL SERVICES | B13: 58000 | C13: 55000 | D13: 52500
A14: 505-111-04420-00052-521210 ENGINEERING FEES | B14: 4500 | C14: 4500 | D14: 4500
A15: 505-111-04420-00052-521211 GEFA LSL GRANT EXPENSES | B15: 100 | C15: 0 | D15: 0
A16: 505-111-04420-00052-521310 TECHNICAL SVCS & TESTING | B16: 37500 | C16: 35000 | D16: 32000
A17: 505-111-04420-00052-521311 AMI METER READING | B17: 20000 | C17: 20000 | D17: 20000
A18: 505-111-04420-00052-521320 DRUG & ALCOHOL TESTING | B18: 250 | C18: 250 | D18: 250
A19: 505-111-04420-00052-522210 REPAIRS & MAINT- BUILDING | B19: 2500 | C19: 2500 | D19: 2000
A20: 505-111-04420-00052-522220 REPAIRS & MAINT- VEHICLES | B20: 3000 | C20: 3750 | D20: 3500
A21: 505-111-04420-00052-522230 REPAIRS & MAINT-EQUIPMENT | B21: 8500 | C21: 8500 | D21: 7500
A22: 505-111-04420-00052-522240 SOFTWARE MAINTENANCE | B22: 1000 | C22: 1000 | D22: 1000
A23: 505-111-04420-00052-522241 COMPUTER MAINTENANCE | B23: 1500 | C23: 1500 | D23: 1250
A24: 505-111-04420-00052-523200 COMMUNICATIONS | B24: 2800 | C24: 2800 | D24: 2800
A25: 505-111-04420-00052-523301 ADVERTISING | B25: 450 | C25: 450 | D25: 450
A26: 505-111-04420-00052-523500 TRAVEL | B26: 1000 | C26: 1000 | D26: 500
A27: 505-111-04420-00052-523610 DUES & SUBCRIPTIONS | B27: 1500 | C27: 1500 | D27: 1500
A28: 505-111-04420-00052-523700 TRAINING & EDUCATION | B28: 2000 | C28: 2000 | D28: 1000
A29: 505-111-04420-00052-523702 ARP EXPENSE FUND
A30: 505-111-04420-00052-523920 BANK SERVICE CHARGES | D30: 0
A31: 505-111-04420-00053-531110 OFFICE SUPPLIES | B31: 500 | C31: 500 | D31: 500
A32: 505-111-04420-00053-531120 MAINT & OPERATING-SUPPLIES | B32: 50000 | C32: 50000 | D32: 40000
A33: 505-111-04420-00053-531140 SMALL TOOLS/MINOR EQUIP | B33: 500 | C33: 500 | D33: 500
A34: 505-111-04420-00053-531230 UTILITIES | B34: 34000 | C34: 34000 | D34: 32500
A35: 505-111-04420-00053-531270 VEHICLE GASOLINE | B35: 8000 | C35: 11000 | D35: 13000
A36: 505-111-04420-00053-531720 UNIFORMS | B36: 1500 | C36: 1500 | D36: 1500
A37: 505-111-04420-00053-531730 MISCELLANEOUS | B37: 4000 | C37: 4000 | D37: 4000
A38: 505-111-04420-00054-541200 CAP OUTLAY-IMPROVEMENTS | B38: 5000 | C38: 5000 | D38: 5000
A39: 505-111-04420-00054-542000 CAPITAL OUTLAY-MACH/EQUIP | B39: 7500 | C39: 7500 | D39: 7500
A40: 505-111-04420-00057-574000 BAD DEBT EXPENSE | B40: 1000 | C40: 1000 | D40: 1000
A41: 505-111-04420-00057-579000 CONTINGENCY FUND | B41: 5000 | C41: 5000 | D41: 5000
A42: 505-111-04420-00058-581310 PRINCIPAL
A43: 505-111-04420-00058-582324 GEFA #2 | B43: 5500 | C43: 5500 | D43: 5500
A44: 505-111-04420-00058-582329 GEFA #5 | B44: 30005 | C44: 30005 | D44: 30005
A45: 505-111-04420-00058-582331 GEFA #6 | B45: 30000 | C45: 15000 | D45: 15000
A47: TOTAL EXPENDITURE | B47: =SUM(B6:B46) -> 500880 | C47: =SUM(C6:C46) -> 477665 | D47: =SUM(D6:D45) -> 445714

Sheet GAS
A1: GAS
B2: 2026 | C2: 2025 | D2: 2024
B4: BUDGET | C4: BUDGET | D4: BUDGET
A6: 515-112-04700-00051-511100 SALARIES | B6: 130000 | C6: 121025 | D6: 117500
A7: 515-112-04700-00051-511300 OVERTIME | B7: 750 | C7: 750 | D7: 750
A8: 515-112-04700-00051-512100 EMPLOYEE INSURANCE | B8: 36000 | C8: 36000 | D8: 36000
A9: 515-112-04700-00051-512200 PAYROLL TAXES | B9: 9950 | C9: 9250 | D9: 9000
A10: 515-112-04700-00051-512400 EMPLOYEE RETIREMENT | B10: 13000 | C10: 13000 | D10: 13000
A11: 515-112-04700-00051-512402 EMPLOYER 457 MATCH | B11: 3900 | C11: 3600 | D11: 3525
A12: 515-112-04700-00051-512700 WORKERS COMP INSURANCE | B12: 3020 | C12: 3020 | D12: 3020
A13: 515-112-04700-00052-521200 PROFESSIONAL SERVICES | B13: 30000 | C13: 30000 | D13: 10000
A14: 515-112-04700-00052-521210 ENGINEERING FEES | B14: 2500 | C14: 2500 | D14: 2500
A15: 515-112-04700-00052-521310 TECHNICAL SVCS & TESTING | B15: 12000 | C15: 12000 | D15: 12000
A16: 515-112-04700-00052-521311 AMI METER READING | B16: 8500 | C16: 8500 | D16: 8000
A17: 515-112-04700-00052-521320 DRUG & ALCOHOL TESTING | B17: 300 | C17: 300 | D17: 300
A18: 515-112-04700-00052-522210 REPAIRS & MAINT-BUILDING | B18: 2000 | C18: 2000 | D18: 1800
A19: 515-112-04700-00052-522220 REPAIRS & MAINT-VEHICLES | B19: 2500 | C19: 2500 | D19: 2500
A20: 515-112-04700-00052-522230 REPAIRS & MAINT-EQUIPMENT | B20: 3500 | C20: 3500 | D20: 3500
A21: 515-112-04700-00052-522240 SOFTWARE MAINTENANCE | B21: 1000 | C21: 1000 | D21: 1000
A22: 515-112-04700-00052-522241 COMPUTER MAINTENANCE | B22: 1600 | C22: 1600 | D22: 1200
A23: 515-112-04700-00052-523200 COMMUNICATIONS | B23: 3600 | C23: 3600 | D23: 3600
A24: 515-112-04700-00052-523301 ADVERTISING | B24: 500 | C24: 500 | D24: 500
A25: 515-112-04700-00052-523500 TRAVEL | B25: 1200 | C25: 1200 | D25: 1200
A26: 515-112-04700-00052-523610 DUES & SUBSCRIPTIONS | B26: 1000 | C26: 1000 | D26: 500
A27: 515-112-04700-00052-523700 TRAINING & EDUCATION | B27: 1000 | C27: 1000 | D27: 1000
A28: 515-112-04700-00052-523701 GAS INCENTIVE EXPENSE | B28: 5000 | C28: 5000 | D28: 5000
A29: 515-112-04700-00053-531110 OFFICE SUPPLIES | B29: 500 | C29: 500 | D29: 500
A30: 515-112-04700-00053-531120 MAINT & OPER-SUPPLIES | B30: 20000 | C30: 20000 | D30: 20000
A31: 515-112-04700-00053-531140 SMALL TOOLS/MINOR EQUIP | B31: 1500 | C31: 1500 | D31: 1500
A32: 515-112-04700-00053-531230 UTILITIES | B32: 7250 | C32: 7250 | D32: 6000
A33: 515-112-04700-00053-531270 VEHICLE GASOLINE | B33: 7000 | C33: 9250 | D33: 9250
A34: 515-112-04700-00053-531520 GAS PURCHASES | B34: 2650000 | C34: 2750000 | D34: 2900000
A35: 515-112-04700-00053-531720 UNIFORMS | B35: 1500 | C35: 1500 | D35: 1500
A36: 515-112-04700-00053-531730 MISCELLANEOUS | B36: 1500 | C36: 1500 | D36: 1000
A37: 515-112-04700-00054-541200 CAP OUTLAY-IMPROVEMENTS | B37: 15000 | C37: 15000 | D37: 15000
A38: 515-112-04700-00054-542000 CAPITAL OUTLAY-MACH/EQUIP | B38: 20000 | C38: 20000 | D38: 20000
A39: 515-112-04700-00057-579000 CONTINGENCIES | B39: 12500 | C39: 12500 | D39: 12500
A40: 515-112-04700-00058-581310 MGAG REPAYMENT
A41: 515-112-04700-00058-582320 INTEREST EXPENSE
A42: 515-112-04700-00058-582323 INTEREST
A44: TOTAL EXPENDITURE | B44: =SUM(B6:B42) -> 3009570 | C44: =SUM(C6:C42) -> 3101845 | D44: =SUM(D6:D42) -> 3224645

Sheet SANITATION
A1: SANITATION
B2: 2026 | C2: 2025 | D2: 2024
B4: BUDGET | C4: BUDGET | D4: BUDGET
A6: 540-113-04300-00051-511100 SALARIES | B6: 61900 | C6: 60255 | D6: 58500
A7: 540-113-04300-00051-511300 OVERTIME
A8: 540-113-04300-00051-512100 EMPLOYEE INSURANCE | B8: 12000 | C8: 12000 | D8: 11650
A9: 540-113-04300-00051-512200 PAYROLL TAXES | B9: 4736 | C9: 4610 | D9: 4475
A10: 540-113-04300-00051-512400 EMPLOYEE RETIREMENT | B10: 4250 | C10: 4970 | D10: 4970
A11: 540-113-04300-00051-512402 EMPLOYER 457 MATCH | B11: 1875 | C11: 1810 | D11: 1755
A12: 540-113-04300-00051-512700 WORKERS COMP INSURANCE | B12: 1700 | C12: 1700 | D12: 1710
A13: 540-113-04300-00052-521216 CONTRACT SERVICES | B13: 475000 | C13: 451000 | D13: 460000
A14: 540-113-04300-00051-521320 DRUG & ALCOHOL TESING | B14: 100 | C14: 100 | D14: 100
A15: 540-113-04300-00052-521325 EMPLOYEE PHYSICALS | B15: 100 | C15: 100 | D15: 100
A16: 540-113-04300-00052-522220 REPAIRS & MAINT-VEHICLES | B16: 1500 | C16: 1500 | D16: 1500
A17: 540-113-04300-00052-522230 REPAIRS & MAINT-EQUIPMENT | B17: 100 | C17: 100 | D17: 100
A18: 540-113-04300-00052-522240 SOFTWARE MAINTENANCE | B18: 500 | C18: 500 | D18: 500
A19: 540-113-04300-00052-522241 COMPUTER MAINTENANCE | B19: 1200 | C19: 1200 | D19: 1000
A20: 540-113-04300-00052-523200 COMMUNICATIONS | B20: 1000 | C20: 1000 | D20: 750
A21: 540-113-04300-00052-523301 ADVERTISING | B21: 100 | C21: 100 | D21: 100
A22: 540-113-04300-00053-531110 OFFICE SUPPLIES | B22: 200 | C22: 200 | D22: 200
A23: 540-113-04300-00053-531120 MAINT & OPER SUPPLIES | B23: 500 | C23: 500 | D23: 1000
A24: 540-113-04300-00053-531140 SMALL TOOLS/ MINOR EQUIP | B24: 500 | C24: 500 | D24: 500
A25: 540-113-04300-00053-531270 VEHICLE GASOLINE | B25: 2000 | C25: 2000 | D25: 2500
A26: 540-113-04300-00053-531720 UNIFORMS | B26: 450 | C26: 450 | D26: 400
A27: 540-113-04300-00053-531730 MISCELLANEOUS | B27: 1000 | C27: 1000 | D27: 1000
A28: 540-113-04300-00054-541200 CAP OUTLAY-IMPROVEMENTS | B28: 1000 | C28: 1000 | D28: 1000
A29: 540-113-04300-00054-542000 CAPITAL OUTLAY-MACH/EQUIP | B29: 1000 | C29: 1000 | D29: 1000
A30: 540-113-04300-00057-571030 LANDFILL FEES | B30: 5000 | C30: 3500 | D30: 2500
A31: 540-113-04300-00057-579000 CONTINGENCIES | B31: 1000 | C31: 1000 | D31: 1000
A33: TOTAL EXPENDITURE | B33: =SUM(B6:B31) -> 578711 | C33: =SUM(C6:C31) -> 552095 | D33: =SUM(D6:D31) -> 558310
